bitfinex-derivatives/quotes_SOLF0:USTF0_20241107
["timestamp","ask_amount","ask_price","bid_price","bid_amount"]
[1730959501760,11.72828874,188.73,188.63,2.5381]
[1730959501960,11.72828874,188.73,188.67,6.52372795]
[1730959502259,5.20456079,188.73,188.67,6.52372795]
[1730959502458,11.72828874,188.73,188.67,6.52372795]
[1730959502863,9.17152795,188.72,188.67,6.52372795]
[1730959503068,2.58,188.71,188.67,6.52372795]
[1730959504366,3.352,188.77,188.68,6.52372795]
[1730959504570,6.52372795,188.75,188.68,6.52372795]
[1730959504768,6.52372795,188.75,188.63,2.5381]
[1730959505069,6.52372795,188.75,188.68,6.52372795]
[1730959505465,2.58,188.74,188.68,6.52372795]
[1730959506770,2.6475,188.73,188.68,6.52372795]
[1730959507265,9.17122795,188.73,188.68,6.52372795]
[1730959507457,9.17122795,188.73,188.67,2.6483]
[1730959507458,6.52372795,188.73,188.67,2.6483]
[1730959507663,2.6477,188.72,188.68,6.52372795]
[1730959507863,6.52372795,188.73,188.68,6.52372795]
[1730959508766,9.17122795,188.73,188.68,6.52372795]
[1730959509374,3.59,188.72,188.68,6.52372795]
[1730959511763,3.59,188.72,188.67,2.6483]
[1730959511764,6.2377,188.72,188.67,6.52372795]
[1730959513070,3.59,188.72,188.67,6.52372795]
[1730959513377,2.6478,188.71,188.67,6.52372795]
[1730959516369,2.648,188.7,188.67,6.52372795]
[1730959516960,2.6478,188.71,188.67,6.52372795]
[1730959519665,2.6478,188.71,188.66,2.6485]
[1730959519880,2.6478,188.71,188.66,9.17222795]
[1730959520573,6.52372795,188.7,188.63,2.5381]
[1730959520875,9.17172795,188.7,188.65,9.17222795]
[1730959522173,3.59,188.72,188.65,6.52372795]
[1730959522374,2.6484,188.67,188.63,2.5381]
[1730959522575,2.6484,188.67,188.63,9.06182795]
[1730959523270,2.6484,188.67,188.63,2.5381]
[1730959523474,2.6484,188.67,188.63,9.06182795]
[1730959523673,6.52372795,188.68,188.51,21.41773937]
[1730959523874,2.6489,188.64,188.6,6.52372795]
[1730959525882,2.58,188.66,188.58,1.1967]
[1730959526071,2.58,188.66,188.62,6.52372795]
[1730959526571,2.6488,188.65,188.62,6.52372795]
[1730959527770,2.6488,188.65,188.61,6.52372795]
[1730959528372,2.6488,188.65,188.6,2.6493]
[1730959528579,2.6488,188.65,188.6,9.17302795]
[1730959529077,2.6488,188.65,188.6,6.52372795]
[1730959529272,2.6488,188.65,188.61,2.6492]
[1730959529479,9.09414112,188.65,188.61,2.6492]
[1730959529669,2.6489,188.64,188.6,2.6493]
[1730959529868,2.6489,188.64,188.6,9.17302795]
[1730959531573,2.6489,188.64,188.6,6.52372795]
[1730959534774,2.6489,188.64,188.59,2.6495]
[1730959534974,9.10372795,188.66,188.6,6.52372795]
[1730959535177,2.6488,188.64,188.6,6.52372795]
[1730959535977,2.6488,188.64,188.59,2.6495]
[1730959537484,6.52372795,188.65,188.58,7.72042795]
[1730959537685,2.649,188.63,188.58,3.8463]
[1730959537885,9.17272795,188.63,188.58,3.8463]
[1730959538475,2.6491,188.62,188.58,1.1967]
[1730959538785,6.52372795,188.61,188.55,7.75352795]
[1730959539079,9.10372795,188.61,188.55,7.75352795]
[1730959539280,6.52372795,188.6,188.55,1.2298]
[1730959539673,2.58,188.61,188.45,2.58]
[1730959539674,6.52372795,188.56,188.45,2.58]
[1730959539882,6.52372795,188.56,188.49,6.52372795]
[1730959540082,2.58,188.61,188.52,6.52372795]
[1730959540286,9.0955386,188.63,188.46,3.9119]
[1730959540287,9.17342795,188.58,188.46,3.9119]
[1730959540487,2.58,188.59,188.46,3.9119]
[1730959540682,9.10372795,188.59,188.46,3.9119]
[1730959540882,2.6499,188.57,188.54,6.52372795]
[1730959541279,9.10372795,188.59,188.54,6.52372795]
[1730959541483,9.10372795,188.59,188.53,2.6503]
[1730959541679,9.10372795,188.59,188.53,9.17402795]
[1730959542190,2.6497,188.58,188.53,2.6503]
[1730959542489,2.6497,188.58,188.53,9.17402795]
[1730959544590,2.6497,188.58,188.53,2.6503]
[1730959544894,2.6497,188.58,188.53,9.17402795]
[1730959546388,9.10372795,188.59,188.54,2.6501]
[1730959546584,2.58,188.59,188.53,6.52372795]
[1730959547490,2.6496,188.58,188.53,9.17402795]
[1730959549083,2.58,188.59,188.53,9.17402795]
[1730959549388,2.6498,188.57,188.53,9.17402795]
[1730959549880,6.52372795,188.58,188.53,6.52372795]
[1730959550186,2.65,188.56,188.51,6.52372795]
[1730959550388,6.52372795,188.58,188.46,3.9119]
[1730959550691,2.6503,188.54,188.51,6.52372795]
[1730959550886,2.6503,188.54,188.46,3.9119]
[1730959551087,2.6501,188.55,188.5,6.52372795]
[1730959551586,2.6501,188.55,188.5,9.17432795]
[1730959554183,2.6501,188.55,188.5,2.6506]
[1730959554390,2.6501,188.55,188.51,6.52372795]
[1730959554688,2.6499,188.57,188.51,9.17422795]
[1730959555084,6.52372795,188.58,188.51,2.6505]
[1730959555290,2.65,188.56,188.51,2.6505]
[1730959555485,6.52372795,188.58,188.51,2.6505]
[1730959555486,6.52372795,188.58,188.51,9.17422795]
[1730959555687,2.6502,188.55,188.5,2.6507]
[1730959555893,2.6502,188.55,188.51,6.52372795]
[1730959557796,6.52372795,188.56,188.46,6.4919]
[1730959557995,6.52372795,188.56,188.49,6.52372795]
[1730959558192,6.52372795,188.56,188.51,6.52372795]
[1730959558393,2.65,188.55,188.51,6.52372795]
[1730959559694,6.52372795,188.56,188.5,2.6506]
[1730959559893,2.6503,188.54,188.5,2.6506]
[1730959560297,2.6503,188.54,188.49,9.17462795]
[1730959560491,6.52372795,188.56,188.51,6.52372795]
[1730959561096,2.6504,188.53,188.49,6.52372795]
[1730959561301,2.58,188.59,188.49,6.52372795]
[1730959561497,6.52372795,188.55,188.49,6.52372795]
[1730959562401,2.6504,188.53,188.5,2.6507]
[1730959562701,6.52372795,188.55,188.5,2.6507]
[1730959562903,2.6503,188.54,188.5,2.6507]
[1730959563095,6.52372795,188.55,188.5,9.17442795]
[1730959563700,2.6503,188.54,188.5,9.17442795]
[1730959563900,6.52372795,188.57,188.5,6.52372795]
[1730959564294,2.6499,188.56,188.51,6.52372795]
[1730959564996,2.6499,188.56,188.51,9.17432795]
[1730959565298,2.6499,188.56,188.46,6.4919]
[1730959565299,2.6501,188.55,188.46,6.4919]
[1730959565499,2.6501,188.55,188.51,6.52372795]
[1730959565993,6.52372795,188.55,188.49,6.52372795]
[1730959566297,9.10372795,188.57,188.51,6.52372795]
[1730959566498,2.6501,188.55,188.51,6.52372795]
[1730959567797,2.6501,188.55,188.51,9.17432795]
[1730959568896,9.10372795,188.57,188.46,6.4919]
[1730959569100,2.58,188.57,188.51,6.52372795]
[1730959569300,9.10372795,188.57,188.51,6.52372795]
[1730959569801,2.58,188.57,188.51,6.52372795]
[1730959570405,2.58,188.57,188.55,2.65]
[1730959570610,0.9354,188.65,188.51,6.52372795]
[1730959570900,6.52372795,188.58,188.51,6.52372795]
[1730959571107,9.17332795,188.58,188.52,1.2345]
[1730959571297,9.17332795,188.58,188.53,6.52372795]
[1730959572393,6.52372795,188.58,188.52,7.75822795]
[1730959572598,2.6499,188.57,188.52,7.75822795]
[1730959573301,2.6499,188.57,188.53,2.6502]
[1730959573606,2.6499,188.57,188.54,6.52372795]
[1730959573909,6.52372795,188.62,188.56,6.52372795]
[1730959575407,6.52372795,188.62,188.56,9.17362795]
[1730959575709,6.52372795,188.62,188.56,6.52372795]
[1730959576613,2.6495,188.6,188.56,6.52372795]
[1730959577201,9.17322795,188.6,188.55,2.6499]
[1730959578309,9.17322795,188.6,188.55,2.65]
[1730959579104,2.6495,188.59,188.55,2.65]
[1730959579704,2.6495,188.59,188.54,6.52372795]
[1730959580307,2.6495,188.59,188.53,5.2216]
[1730959580510,2.6495,188.59,188.54,6.52372795]
[1730959580711,2.6498,188.57,188.53,5.2216]
[1730959580911,2.6498,188.57,188.53,9.09512795]
[1730959581112,6.52372795,188.58,188.53,7.81112795]
[1730959581309,2.6501,188.55,188.52,1.2345]
[1730959581808,6.52372795,188.56,188.5,6.52372795]
[1730959583413,2.6503,188.54,188.5,6.52372795]
[1730959585612,2.6503,188.53,188.5,6.52372795]
[1730959589224,2.6503,188.53,188.48,6.52372795]
[1730959589418,9.17402795,188.53,188.48,6.52372795]
[1730959589623,9.17402795,188.53,188.48,9.17462795]
[1730959589821,9.17402795,188.53,188.48,6.52372795]
[1730959590124,2.6505,188.52,188.48,9.17472795]
[1730959592932,6.52372795,188.55,188.48,6.52372795]
[1730959593133,2.6507,188.51,188.48,6.52372795]
[1730959593335,6.52372795,188.55,188.5,6.52372795]
[1730959594237,2.6505,188.52,188.5,6.52372795]
[1730959594430,6.52372795,188.55,188.45,2.6]
[1730959594638,6.52372795,188.53,188.47,6.52372795]
[1730959594930,6.52372795,188.53,188.47,2.6511]
[1730959595131,6.52372795,188.51,188.45,6.52372795]
[1730959595325,2.6509,188.49,188.46,2.6513]
[1730959595524,2.6509,188.49,188.45,6.52372795]
[1730959595925,2.6509,188.49,188.44,2.6515]
[1730959596124,2.6509,188.49,188.45,6.52372795]
[1730959597729,2.6509,188.49,188.45,9.17512795]
[1730959599734,2.6509,188.49,188.45,2.6514]
[1730959600323,9.68372795,188.48,188.45,2.6514]
[1730959601329,9.68372795,188.48,188.42,8.94462795]
[1730959601530,9.68372795,188.48,188.44,6.52372795]
[1730959601732,3.16,188.48,188.47,6.52372795]
[1730959603135,3.16,188.48,188.47,9.17492795]
[1730959604036,6.52372795,188.55,188.51,2.6505]
[1730959604235,6.92771983,188.57,188.52,6.52372795]
[1730959605126,6.92771983,188.57,188.53,2.6502]
[1730959605728,6.52372795,188.55,188.49,7.84172795]
[1730959606330,6.52372795,188.55,188.49,10.49262795]
[1730959606629,6.52372795,188.53,188.48,3.8907]
[1730959606829,9.17402795,188.53,188.48,6.5416]
[1730959607235,2.6503,188.53,188.49,6.52372795]
[1730959607734,6.52372795,188.55,188.49,6.52372795]
[1730959608439,6.52372795,188.55,188.51,2.6505]
[1730959608836,2.6499,188.56,188.51,9.17422795]
[1730959609739,6.52372795,188.57,188.49,1.2626]
[1730959609934,2.6503,188.54,188.49,3.9134]
[1730959610141,2.6503,188.54,188.49,10.43712795]
[1730959611747,2.6503,188.54,188.5,2.6506]
[1730959612245,2.6503,188.54,188.49,7.78632795]
[1730959612442,2.6503,188.54,188.49,10.43722795]
[1730959615343,2.6503,188.54,188.5,2.6507]
[1730959616138,6.52372795,188.57,188.5,2.6507]
[1730959616341,6.52372795,188.57,188.51,9.17422795]
[1730959616745,2.6499,188.56,188.51,2.6505]
[1730959617044,2.6499,188.56,188.53,2.6503]
[1730959617244,6.52372795,188.57,188.49,1.2626]
[1730959617450,6.52372795,188.57,188.51,6.52372795]
[1730959617849,2.65,188.56,188.52,2.6504]
[1730959618551,9.57731983,188.58,188.53,9.17392795]
[1730959618748,1.2841,188.61,188.53,6.52372795]
[1730959619058,6.52372795,188.6,188.54,6.52372795]
[1730959619757,2.6495,188.59,188.55,2.65]
[1730959620354,2.6496,188.58,188.54,2.6502]
[1730959620556,6.52372795,188.6,188.52,6.52372795]
[1730959621459,9.17332795,188.59,188.49,2.4522]
[1730959621757,9.17332795,188.59,188.53,6.52372795]
[1730959622056,9.17352795,188.57,188.5,6.52372795]
[1730959622746,9.17352795,188.57,188.52,2.6504]
[1730959622949,9.17352795,188.57,188.5,6.52372795]
[1730959623152,9.17352795,188.57,188.52,2.6505]
[1730959623356,6.52372795,188.57,188.52,2.6505]
[1730959623554,2.6499,188.56,188.52,2.6505]
[1730959623852,9.17362795,188.56,188.52,2.6505]
[1730959625057,9.17422795,188.52,188.49,1.2626]
[1730959625262,6.52372795,188.52,188.49,1.2626]
[1730959625757,6.52372795,188.52,188.49,3.9135]
[1730959626146,2.58,188.58,188.49,10.43722795]
[1730959626356,9.17392795,188.54,188.5,2.6507]
[1730959626660,6.52372795,188.54,188.5,2.6507]
[1730959626955,6.52372795,188.54,188.49,7.78632795]
[1730959626956,2.6502,188.54,188.49,7.78632795]
[1730959627154,6.52372795,188.57,188.5,6.52372795]
[1730959627347,6.52372795,188.57,188.52,6.52372795]
[1730959627751,6.52372795,188.57,188.54,2.6501]
[1730959629057,6.52372795,188.57,188.52,6.52372795]
[1730959629256,6.52372795,188.57,188.53,2.6503]
[1730959629658,2.6496,188.58,188.53,2.6503]
[1730959629959,6.52372795,188.57,188.53,2.6503]
[1730959630358,1.2593,188.6,188.51,2.6505]
[1730959630359,6.52372795,188.55,188.51,2.6505]
[1730959630953,9.17382795,188.55,188.5,2.6506]
[1730959631967,1.2593,188.6,188.52,2.6504]
[1730959632148,6.52372795,188.55,188.52,2.6504]
[1730959632353,4.08,188.54,188.49,1.2626]
[1730959632657,4.08,188.54,188.51,2.6506]
[1730959633854,4.08,188.54,188.49,7.78632795]
[1730959634053,4.08,188.54,188.53,2.6503]
[1730959638064,4.08,188.54,188.53,9.17402795]
[1730959638065,1.072,188.54,188.53,9.17402795]
[1730959638367,6.92771983,188.6,188.56,2.6499]
[1730959638665,2.6495,188.59,188.55,6.52372795]
[1730959638867,6.52372795,188.61,188.55,9.17362795]
[1730959639362,6.52372795,188.59,188.54,2.6502]
[1730959639665,6.52372795,188.57,188.49,1.2626]
[1730959639864,9.17352795,188.57,188.52,2.6504]
[1730959640863,2.65,188.56,188.52,2.6504]
[1730959641063,6.52372795,188.55,188.51,2.6506]
[1730959642166,9.17392795,188.55,188.51,2.6506]
[1730959647676,9.17392795,188.55,188.5,2.6507]
[1730959647869,9.17392795,188.55,188.49,6.52372795]
[1730959648862,9.17392795,188.55,188.51,2.6506]
[1730959652377,9.17392795,188.55,188.49,6.52372795]
[1730959652577,6.52372795,188.54,188.5,2.6507]
[1730959653477,6.52372795,188.54,188.39,1.2267]
[1730959653675,2.6504,188.53,188.48,2.6509]
[1730959654981,6.52372795,188.52,188.48,2.6509]
[1730959655976,6.52372795,188.52,188.47,6.52372795]
[1730959656274,6.52372795,188.52,188.47,2.6512]
[1730959656474,6.52372795,188.52,188.44,6.52372795]
[1730959656682,2.6508,188.5,188.46,2.6512]
[1730959660191,2.6509,188.49,188.44,2.6515]
[1730959660393,6.52372795,188.5,188.44,6.52372795]
[1730959660697,2.6509,188.5,188.45,9.17512795]
[1730959661191,2.6509,188.5,188.45,2.6514]
[1730959661398,3.1,188.49,188.45,9.17512795]
[1730959664585,3.1,188.49,188.45,2.6514]
[1730959664895,3.1,188.49,188.45,9.17512795]
[1730959665689,3.1,188.49,188.45,2.6514]
[1730959665993,5.7509,188.49,188.45,2.6514]
[1730959669400,5.7509,188.49,188.43,6.52372795]
[1730959670101,5.7509,188.49,188.44,2.6515]
[1730959672903,3.1,188.49,188.44,2.6515]
[1730959673094,2.6511,188.48,188.44,2.6515]
[1730959675192,2.6511,188.48,188.4,1.2558]
[1730959675193,2.6512,188.47,188.42,2.6518]
[1730959675402,6.52372795,188.46,188.4,1.2558]
[1730959675598,6.52372795,188.46,188.4,7.77952795]
[1730959676203,9.17512795,188.46,188.41,2.6519]
[1730959679602,6.52372795,188.45,188.35,1.2418]
[1730959679798,6.52372795,188.41,188.38,2.6524]
[1730959680001,6.52372795,188.41,188.35,3.8618]
[1730959680204,6.52372795,188.41,188.31,2.4675]
[1730959680205,6.52372795,188.39,188.33,6.52372795]
[1730959681003,6.52372795,188.39,188.34,6.52372795]
[1730959682807,6.52372795,188.39,188.35,2.6528]
[1730959683409,6.52372795,188.37,188.33,6.52372795]
[1730959684507,5.2724,188.39,188.33,2.6531]
[1730959684908,6.52372795,188.37,188.33,2.6531]
[1730959686007,9.17632795,188.37,188.32,6.52372795]
[1730959686197,6.52372795,188.35,188.31,2.6533]
[1730959691102,2.6526,188.37,188.31,2.6533]
[1730959691311,6.52372795,188.36,188.31,2.6533]
[1730959692100,9.17642795,188.36,188.31,2.6533]
[1730959693012,12.26642795,188.36,188.3,9.17722795]
[1730959693416,9.61372795,188.36,188.3,9.17722795]
[1730959693712,2.6529,188.35,188.3,9.17722795]
[1730959694608,5.7427,188.36,188.32,6.52372795]
[1730959695010,12.26642795,188.36,188.31,2.6533]
[1730959695209,12.26642795,188.36,188.31,9.17702795]
[1730959695510,12.26642795,188.36,188.31,2.6533]
[1730959695711,12.26642795,188.36,188.31,9.17702795]
[1730959697103,12.26642795,188.36,188.31,2.6533]
[1730959697308,12.26642795,188.36,188.31,9.17702795]
[1730959698812,9.61372795,188.36,188.31,6.52372795]
[1730959699014,2.6529,188.35,188.3,9.17722795]
[1730959699212,6.52372795,188.34,188.27,2.62]
[1730959699409,6.52372795,188.34,188.29,9.17732795]
[1730959700016,6.52372795,188.34,188.29,2.6536]
[1730959700221,6.52372795,188.34,188.29,9.17732795]
[1730959700719,6.52372795,188.34,188.29,6.52372795]
[1730959701015,2.653,188.35,188.3,2.6535]
[1730959701316,2.653,188.35,188.31,6.52372795]
[1730959703818,12.26652795,188.36,188.31,6.52372795]
[1730959704015,3.09,188.36,188.34,6.52372795]
[1730959704412,3.09,188.36,188.35,9.17662795]
[1730959704619,7.73702795,188.43,188.35,6.52372795]
[1730959704818,9.16372795,188.43,188.37,6.52372795]
[1730959705019,9.16372795,188.43,188.36,2.6526]
[1730959705215,9.16372795,188.43,188.37,6.52372795]
[1730959705419,6.52372795,188.42,188.37,6.52372795]
[1730959705829,2.652,188.41,188.37,6.52372795]
[1730959706031,6.52372795,188.42,188.37,6.52372795]
[1730959706224,6.52372795,188.44,188.39,6.52372795]
[1730959707122,9.17542795,188.44,188.39,6.52372795]
[1730959707926,2.6518,188.43,188.38,2.6524]
[1730959708225,2.6518,188.43,188.38,9.17612795]
[1730959708927,9.17532795,188.44,188.38,9.17612795]
[1730959709523,6.52372795,188.44,188.38,2.6524]
[1730959709830,2.6517,188.43,188.38,9.17612795]
[1730959710232,9.17572795,188.42,188.37,2.64]
[1730959710530,6.52372795,188.42,188.37,9.16372795]
[1730959711031,6.52372795,188.42,188.32,2.4931]
[1730959711221,6.52372795,188.4,188.34,6.52372795]
[1730959711418,6.52372795,188.39,188.32,7.76232795]
[1730959712131,9.17602795,188.39,188.32,7.76232795]
[1730959712321,6.52372795,188.39,188.32,7.76232795]
[1730959713124,9.17612795,188.39,188.34,2.653]
[1730959713824,9.17612795,188.39,188.33,2.6531]
[1730959715336,2.6527,188.36,188.32,1.2386]
[1730959716426,2.6527,188.36,188.31,7.75492795]
[1730959716628,2.6527,188.36,188.31,6.52372795]
[1730959717027,9.17662795,188.35,188.31,6.52372795]
[1730959717731,9.17662795,188.35,188.22,2.5078]
[1730959717732,6.52372795,188.31,188.22,2.5078]
[1730959718032,5.11022109,188.42,188.25,2.6543]
[1730959718033,6.52372795,188.29,188.25,2.6543]
[1730959718229,6.52372795,188.29,188.23,6.52372795]
[1730959718431,2.6536,188.3,188.25,6.52372795]
[1730959719228,2.6537,188.29,188.23,2.6544]
[1730959719431,9.17742795,188.29,188.23,9.17812795]
[1730959719634,6.52372795,188.29,188.23,9.17812795]
[1730959719932,2.64,188.32,188.23,9.17812795]
[1730959719933,6.52372795,188.3,188.24,2.6543]
[1730959720335,9.17762795,188.28,188.22,7.84332795]
[1730959720538,9.17762795,188.28,188.22,6.52372795]
[1730959721733,2.6539,188.28,188.22,9.17842795]
[1730959721934,9.17762795,188.28,188.22,9.17842795]
[1730959722129,6.52372795,188.26,188.2,1.2921]
[1730959722528,6.52372795,188.26,188.21,6.52372795]
[1730959722929,6.52372795,188.26,188.22,2.6547]
[1730959725334,6.52372795,188.26,188.23,2.6545]
[1730959725545,6.52372795,188.26,188.2,1.2921]
[1730959725734,6.52372795,188.25,188.2,1.2921]
[1730959725937,6.52372795,188.25,188.22,2.6546]
[1730959728241,6.52372795,188.26,188.22,2.6546]
[1730959728740,6.52372795,188.27,188.23,2.6545]
[1730959729738,6.52372795,188.27,188.22,2.6547]
[1730959730245,9.17742795,188.29,188.24,6.52372795]
[1730959730443,6.52372795,188.29,188.24,6.52372795]
[1730959730653,2.78,188.31,188.24,6.52372795]
[1730959730938,6.52372795,188.3,188.24,6.52372795]
[1730959731836,6.52372795,188.3,188.25,2.6542]
[1730959733344,5.112,188.35,188.28,2.6538]
[1730959733546,6.52372795,188.32,188.26,6.52372795]
[1730959734745,6.52372795,188.32,188.27,2.654]
[1730959737951,9.17702795,188.32,188.27,2.654]
[1730959738958,6.52372795,188.32,188.27,2.654]
[1730959739857,6.52372795,188.3,188.21,2.5608]
[1730959740058,6.52372795,188.3,188.24,6.52372795]
[1730959740659,6.52372795,188.28,188.24,2.6544]
[1730959741665,6.52372795,188.28,188.25,2.6543]
[1730959742166,6.52372795,188.28,188.23,6.52372795]
[1730959742658,6.52372795,188.28,188.24,2.6544]
[1730959743068,6.52372795,188.28,188.24,9.17812795]
[1730959743659,6.52372795,188.28,188.25,2.6543]
[1730959744555,6.52372795,188.28,188.24,6.52372795]
[1730959744758,6.52372795,188.28,188.24,9.17812795]
[1730959745063,2.6534,188.31,188.24,6.52372795]
[1730959745259,6.52372795,188.3,188.24,6.52372795]
[1730959745868,6.52372795,188.3,188.25,2.6543]
[1730959746557,2.6534,188.31,188.25,2.6543]
[1730959746755,6.52372795,188.29,188.25,2.6543]
[1730959747162,2.6534,188.31,188.25,2.6543]
[1730959747464,6.52372795,188.29,188.25,2.6543]
[1730959748056,6.52372795,188.29,188.21,1.273]
[1730959748256,6.52372795,188.27,188.24,2.6544]
[1730959751574,6.52372795,188.28,188.22,6.52372795]
[1730959751758,6.52372795,188.29,188.24,6.52372795]
[1730959752566,9.17752795,188.29,188.24,6.52372795]
[1730959752865,9.17752795,188.29,188.22,6.52372795]
[1730959753366,9.17752795,188.29,188.24,2.6544]
[1730959753564,6.52372795,188.29,188.24,2.6544]
[1730959753954,9.4139503,188.35,188.24,6.52372795]
[1730959754155,6.52372795,188.3,188.24,6.52372795]
[1730959754358,2.459,188.35,188.24,6.52372795]
[1730959754569,6.52372795,188.32,188.26,9.17772795]
[1730959754869,6.52372795,188.31,188.25,6.52372795]
[1730959755062,6.52372795,188.31,188.27,6.52372795]
[1730959755576,6.52372795,188.31,188.24,2.78]
[1730959755577,6.52372795,188.31,188.25,6.52372795]
[1730959755866,2.78,188.34,188.25,6.52372795]
[1730959755867,6.52372795,188.29,188.25,6.52372795]
[1730959756060,6.52372795,188.29,188.26,2.6541]
[1730959756262,2.6533,188.32,188.26,2.6541]
[1730959756459,6.52372795,188.3,188.26,2.6541]
[1730959756657,6.52372795,188.3,188.25,6.52372795]
[1730959756658,9.17732795,188.3,188.25,2.6542]
[1730959756862,6.52372795,188.28,188.24,2.78]
[1730959757468,6.52372795,188.28,188.24,5.4343]
[1730959759461,6.52372795,188.3,188.25,2.6542]
[1730959759664,6.52372795,188.3,188.25,6.52372795]
[1730959759862,6.52372795,188.32,188.25,6.52372795]
[1730959760070,6.52372795,188.32,188.27,2.6539]
[1730959761065,5.4532,188.33,188.27,2.6539]
[1730959761262,6.52372795,188.32,188.27,9.17772795]
[1730959761472,6.52372795,188.32,188.27,6.52372795]
[1730959762366,6.52372795,188.33,188.27,6.52372795]
[1730959762566,6.52372795,188.33,188.28,6.52372795]
[1730959763273,8.98272795,188.35,188.28,6.52372795]
[1730959763869,6.52372795,188.35,188.3,6.52372795]
[1730959764273,6.9549503,188.41,188.34,6.52372795]
[1730959764474,6.52372795,188.43,188.37,9.17632795]
[1730959765174,6.52372795,188.43,188.37,6.52372795]
[1730959765381,6.52372795,188.41,188.35,6.52372795]
[1730959765876,6.52372795,188.41,188.36,2.6526]
[1730959767481,6.52372795,188.41,188.37,2.6526]
[1730959767673,6.52372795,188.41,188.36,6.52372795]
[1730959768370,6.52372795,188.43,188.36,6.52372795]
[1730959768772,6.52372795,188.43,188.37,6.52372795]
[1730959769578,6.52372795,188.43,188.37,9.17632795]
[1730959770075,2.8,188.44,188.37,6.52372795]
[1730959770377,9.17532795,188.44,188.38,2.6524]
[1730959771876,16.13027825,188.44,188.38,2.6524]
[1730959772466,9.6065503,188.44,188.38,2.6524]
[1730959772669,9.17532795,188.44,188.38,2.6524]
[1730959772866,6.52372795,188.44,188.38,2.6524]
[1730959773070,2.6518,188.43,188.38,2.6524]
[1730959774175,2.6518,188.43,188.39,6.52372795]
[1730959774587,6.52372795,188.45,188.39,6.52372795]
[1730959774778,9.32372795,188.46,188.4,6.52372795]
[1730959775479,6.52372795,188.46,188.4,6.52372795]
[1730959775675,2.5095,188.49,188.42,6.52372795]
[1730959775877,7.71772795,188.49,188.44,6.52372795]
[1730959776077,6.52372795,188.48,188.42,6.52372795]
[1730959777684,6.52372795,188.46,188.4,6.52372795]
[1730959777984,6.52372795,188.44,188.39,6.52372795]
[1730959779779,1.194,188.49,188.41,6.52372795]
[1730959779979,6.52372795,188.47,188.41,6.52372795]
[1730959780877,6.52372795,188.47,188.42,2.6517]
[1730959781187,3.83,188.46,188.42,2.6517]
[1730959782381,3.83,188.46,188.36,2.8]
[1730959782588,9.17512795,188.45,188.39,9.17592795]
[1730959785586,3.83,188.46,188.39,6.52372795]
[1730959785783,3.83,188.46,188.41,6.52372795]
[1730959786789,2.6514,188.45,188.41,6.52372795]
[1730959789790,6.4813,188.46,188.41,6.52372795]
[1730959790188,6.4813,188.46,188.4,2.652]
[1730959790391,6.4813,188.46,188.41,6.52372795]
[1730959791297,2.6514,188.45,188.41,6.52372795]
[1730959791994,2.6514,188.45,188.4,9.17572795]
[1730959792488,2.6514,188.45,188.36,2.8]
[1730959792790,6.52372795,188.43,188.38,9.17602795]
[1730959792995,6.52372795,188.43,188.38,6.52372795]
[1730959793385,2.6518,188.42,188.38,6.52372795]
[1730959800091,6.52372795,188.42,188.33,2.5164]
[1730959800298,6.52372795,188.42,188.35,6.52372795]
[1730959801595,6.52372795,188.4,188.35,6.52372795]
[1730959801796,2.6524,188.38,188.34,6.52372795]
[1730959802892,6.52372795,188.4,188.29,2.7]
[1730959803094,2.6525,188.37,188.33,6.52372795]
[1730959808091,2.6525,188.37,188.31,2.6532]
[1730959808297,2.6525,188.37,188.33,6.52372795]
[1730959808699,9.22372795,188.39,188.35,6.52372795]
[1730959808700,2.7,188.39,188.35,6.52372795]
[1730959809694,2.7,188.39,188.35,9.17652795]
[1730959809894,2.7,188.39,188.35,2.6528]
[1730959810099,5.3522,188.39,188.34,6.52372795]
[1730959810295,2.7,188.39,188.34,6.52372795]
[1730959810495,2.7,188.4,188.34,6.52372795]
[1730959810696,5.3522,188.4,188.35,2.6528]
[1730959811100,11.87592795,188.4,188.35,2.6528]
[1730959811305,5.3522,188.4,188.35,2.6528]
[1730959811597,2.6523,188.39,188.35,2.6528]
[1730959812705,11.87582795,188.4,188.35,2.6528]
[1730959812910,11.87582795,188.4,188.36,2.6526]
[1730959813297,5.3521,188.4,188.34,6.52372795]
[1730959813502,11.87582795,188.4,188.34,6.52372795]